[Event "*** Titled Tuesday Blitz"]
[Site "Chess.com"]
[Date "2021.04.27"]
[Round "9"]
[White "gmpeter008"]
[Black "AryanTari"]
[Result "0-1"]
[WhiteElo "2476"]
[BlackElo "2875"]
[TimeControl "180+1"]
[EndTime "11:43:07 PDT"]
[Termination "AryanTari won by resignation"]

1. d4 {[%clk 0:03:00.9]} 1... Nf6 {[%clk 0:02:42]} 2. Bf4 {[%clk 0:03:01]} 2...
d5 {[%clk 0:02:39.2]} 3. e3 {[%clk 0:03:01.2]} 3... Bg4 {[%clk 0:02:36.7]} 4. f3
{[%clk 0:02:57.4]} 4... Bd7 {[%clk 0:02:36.4]} 5. c4 {[%clk 0:02:57.5]} 5... e6
{[%clk 0:02:32.4]} 6. Nc3 {[%clk 0:02:57.6]} 6... c5 {[%clk 0:02:17.7]} 7. cxd5
{[%clk 0:02:15]} 7... exd5 {[%clk 0:02:07]} 8. Bd3 {[%clk 0:02:12.4]} 8... Nc6
{[%clk 0:01:41.4]} 9. Nge2 {[%clk 0:02:12.1]} 9... Be7 {[%clk 0:01:35.2]} 10.
O-O {[%clk 0:02:11.7]} 10... O-O {[%clk 0:01:35.5]} 11. a3 {[%clk 0:02:08.7]}
11... a6 {[%clk 0:01:33.4]} 12. Bg3 {[%clk 0:01:57.7]} 12... Rc8 {[%clk
0:01:24.2]} 13. Rc1 {[%clk 0:01:53.1]} 13... b5 {[%clk 0:01:19]} 14. dxc5 {[%clk
0:01:49.1]} 14... Bxc5 {[%clk 0:01:19.3]} 15. Bf2 {[%clk 0:01:49.2]} 15... Qb6
{[%clk 0:01:19]} 16. Nd4 {[%clk 0:01:36.7]} 16... Ne5 {[%clk 0:01:00.6]} 17. Bb1
{[%clk 0:00:50.4]} 17... Ng6 {[%clk 0:00:58.3]} 18. Nce2 {[%clk 0:00:47]} 18...
Rfe8 {[%clk 0:00:54.4]} 19. Qd2 {[%clk 0:00:47.2]} 19... b4 {[%clk 0:00:53.9]}
20. axb4 {[%clk 0:00:34.3]} 20... Bxb4 {[%clk 0:00:54.8]} 21. Qd1 {[%clk
0:00:32.4]} 21... a5 {[%clk 0:00:47]} 22. Rxc8 {[%clk 0:00:31.6]} 22... Rxc8
{[%clk 0:00:46.3]} 23. Nf4 {[%clk 0:00:26.1]} 23... Nxf4 {[%clk 0:00:40.4]} 24.
exf4 {[%clk 0:00:27]} 24... Bc5 {[%clk 0:00:41]} 25. Qd2 {[%clk 0:00:27.4]}
25... Rb8 {[%clk 0:00:34.2]} 26. b3 {[%clk 0:00:24.8]} 26... Qb4 {[%clk
0:00:24.6]} 27. Qd3 {[%clk 0:00:24]} 27... Bxd4 {[%clk 0:00:19.3]} 28. Bxd4
{[%clk 0:00:17.4]} 28... Bb5 {[%clk 0:00:19.2]} 29. Qe3 {[%clk 0:00:12.4]} 29...
Bxf1 {[%clk 0:00:17.5]} 30. Kxf1 {[%clk 0:00:13.3]} 30... Re8 {[%clk 0:00:16.2]}
31. Qc1 {[%clk 0:00:12.1]} 31... Qxd4 {[%clk 0:00:15.8]} 32. Bf5 {[%clk
0:00:11.5]} 32... h6 {[%clk 0:00:14.7]} 0-1

[Event "*** Titled Tuesday Blitz"]
[Site "Chess.com"]
[Date "2021.04.27"]
[Round "9"]
[White "tusplingher"]
[Black "viktorgen2021"]
[Result "1-0"]
[WhiteElo "2288"]
[BlackElo "2367"]
[TimeControl "180+1"]
[EndTime "11:43:07 PDT"]
[Termination "tusplingher won by checkmate"]

1. e4 {[%clk 0:03:00.9]} 1... d5 {[%clk 0:02:58.4]} 2. exd5 {[%clk 0:02:57.3]}
2... Nf6 {[%clk 0:02:58.2]} 3. d4 {[%clk 0:02:55.6]} 3... g6 {[%clk 0:02:57.3]}
4. c4 {[%clk 0:02:54.9]} 4... Bg7 {[%clk 0:02:57.5]} 5. Nc3 {[%clk 0:02:54.1]}
5... O-O {[%clk 0:02:57.8]} 6. Nf3 {[%clk 0:02:53.5]} 6... c6 {[%clk 0:02:53.7]}
7. dxc6 {[%clk 0:02:53.3]} 7... Nxc6 {[%clk 0:02:52.7]} 8. Be2 {[%clk 0:02:53]}
8... b6 {[%clk 0:02:51.9]} 9. O-O {[%clk 0:02:52.1]} 9... Bb7 {[%clk 0:02:52.5]}
10. h3 {[%clk 0:02:50.8]} 10... Rc8 {[%clk 0:02:51.7]} 11. Be3 {[%clk
0:02:49.5]} 11... Re8 {[%clk 0:02:41.6]} 12. Rc1 {[%clk 0:02:47.2]} 12... e6
{[%clk 0:02:35.6]} 13. Bg5 {[%clk 0:02:42.4]} 13... Qd7 {[%clk 0:02:30.4]} 14.
Ne5 {[%clk 0:02:21.2]} 14... Qe7 {[%clk 0:02:08.6]} 15. Nxc6 {[%clk 0:02:17.8]}
15... Bxc6 {[%clk 0:02:08.3]} 16. b3 {[%clk 0:02:16.2]} 16... h6 {[%clk
0:02:08.1]} 17. Bh4 {[%clk 0:02:15.2]} 17... g5 {[%clk 0:02:08.6]} 18. Bg3
{[%clk 0:02:15.4]} 18... Red8 {[%clk 0:02:09.2]} 19. Re1 {[%clk 0:02:13]} 19...
Ne8 {[%clk 0:02:07.9]} 20. d5 {[%clk 0:02:10.6]} 20... Ba8 {[%clk 0:02:04.3]}
21. Bf3 {[%clk 0:02:03.4]} 21... e5 {[%clk 0:02:01.3]} 22. Ne4 {[%clk
0:02:00.1]} 22... f5 {[%clk 0:01:59.3]} 23. Nc3 {[%clk 0:01:56.4]} 23... Nd6
{[%clk 0:01:59]} 24. Qd2 {[%clk 0:01:39.4]} 24... Rf8 {[%clk 0:01:52.6]} 25. Bd1
{[%clk 0:00:59.5]} 25... Bf6 {[%clk 0:01:50.7]} 26. Bf3 {[%clk 0:00:57.1]} 26...
Qg7 {[%clk 0:01:50.1]} 27. Be2 {[%clk 0:00:53.7]} 27... Rfe8 {[%clk 0:01:49]}
28. Bd3 {[%clk 0:00:53.4]} 28... e4 {[%clk 0:01:49.1]} 29. Bxd6 {[%clk
0:00:52.4]} 29... exd3 {[%clk 0:01:47.9]} 30. Rxe8+ {[%clk 0:00:49.5]} 30...
Rxe8 {[%clk 0:01:47.3]} 31. Qxd3 {[%clk 0:00:45.8]} 31... Bb7 {[%clk 0:01:37.6]}
32. Ne2 {[%clk 0:00:40.7]} 32... Bc8 {[%clk 0:01:36.3]} 33. Ng3 {[%clk 0:00:39]}
33... f4 {[%clk 0:01:36.5]} 34. Nh5 {[%clk 0:00:39]} 34... Qf7 {[%clk
0:01:35.4]} 35. Nxf6+ {[%clk 0:00:37.9]} 35... Qxf6 {[%clk 0:01:36.3]} 36. Bb4
{[%clk 0:00:35.4]} 36... Bf5 {[%clk 0:01:36.1]} 37. Qd2 {[%clk 0:00:32.9]} 37...
f3 {[%clk 0:01:35.2]} 38. Bc3 {[%clk 0:00:31.9]} 38... Qg6 {[%clk 0:01:33.1]}
39. g4 {[%clk 0:00:28.1]} 39... Bd3 {[%clk 0:01:30.4]} 40. Re1 {[%clk
0:00:26.8]} 40... Re2 {[%clk 0:01:30.1]} 41. Rxe2 {[%clk 0:00:21.3]} 41... Bxe2
{[%clk 0:01:28.4]} 42. Qe3 {[%clk 0:00:18.5]} 42... Qb1+ {[%clk 0:01:27.8]} 43.
Kh2 {[%clk 0:00:17.4]} 43... Qg6 {[%clk 0:01:22.7]} 44. Qe5 {[%clk 0:00:17.4]}
44... a6 {[%clk 0:01:07.1]} 45. d6 {[%clk 0:00:17.4]} 45... h5 {[%clk
0:00:59.2]} 46. d7 {[%clk 0:00:17.1]} 46... Qd3 {[%clk 0:00:41.9]} 47. Qg7#
{[%clk 0:00:15.4]} 1-0

[Event "*** Titled Tuesday Blitz"]
[Site "Chess.com"]
[Date "2021.04.27"]
[Round "9"]
[White "DFeco"]
[Black "Cambek64"]
[Result "1-0"]
[WhiteElo "2312"]
[BlackElo "2473"]
[TimeControl "180+1"]
[EndTime "11:43:08 PDT"]
[Termination "DFeco won by resignation"]

1. c4 {[%clk 0:03:00.9]} 1... c6 {[%clk 0:01:48.3]} 2. g3 {[%clk 0:03:00.1]}
2... d5 {[%clk 0:01:47]} 3. Nf3 {[%clk 0:02:59.6]} 3... Nf6 {[%clk 0:01:47.3]}
4. Bg2 {[%clk 0:02:59.6]} 4... Bg4 {[%clk 0:01:46.3]} 5. Ne5 {[%clk 0:02:58.2]}
5... Bf5 {[%clk 0:01:46.2]} 6. cxd5 {[%clk 0:02:55.4]} 6... cxd5 {[%clk
0:01:44]} 7. Nc3 {[%clk 0:02:55.8]} 7... e6 {[%clk 0:01:41.6]} 8. Qa4+ {[%clk
0:02:40.2]} 8... Nbd7 {[%clk 0:01:40.3]} 9. g4 {[%clk 0:02:40.2]} 9... Bg6
{[%clk 0:01:34.5]} 10. h4 {[%clk 0:02:37.5]} 10... h5 {[%clk 0:01:23.4]} 11. g5
{[%clk 0:02:32.1]} 11... Ng8 {[%clk 0:01:13.3]} 12. Nxd5 {[%clk 0:02:10.9]}
12... exd5 {[%clk 0:01:05]} 13. Bh3 {[%clk 0:02:10.7]} 13... Bd6 {[%clk
0:00:45.6]} 14. Nxd7 {[%clk 0:02:05]} 14... Ke7 {[%clk 0:00:46.1]} 15. Qb3
{[%clk 0:01:45.3]} 15... Qc7 {[%clk 0:00:44.4]} 16. Qxd5 {[%clk 0:01:24.7]}
16... Qc6 {[%clk 0:00:44]} 17. Qxc6 {[%clk 0:01:20.2]} 17... bxc6 {[%clk
0:00:43.4]} 18. d4 {[%clk 0:01:18.1]} 18... Rd8 {[%clk 0:00:43.9]} 19. Nc5
{[%clk 0:01:16.5]} 19... Bxc5 {[%clk 0:00:39.2]} 20. dxc5 {[%clk 0:01:16.2]}
20... Rd5 {[%clk 0:00:39.7]} 21. Be3 {[%clk 0:01:13.4]} 21... Be4 {[%clk
0:00:40.2]} 22. f3 {[%clk 0:01:11.5]} 22... Bf5 {[%clk 0:00:39.8]} 23. Bxf5
{[%clk 0:01:05.6]} 23... Rxf5 {[%clk 0:00:35.4]} 24. Kf2 {[%clk 0:01:02.1]}
24... Ke8 {[%clk 0:00:18.1]} 25. Bd4 {[%clk 0:01:01.6]} 25... f6 {[%clk
0:00:15.4]} 26. e4 {[%clk 0:01:00.5]} 26... Re5 {[%clk 0:00:13.6]} 27. Bxe5
{[%clk 0:01:00.1]} 27... fxe5 {[%clk 0:00:13.2]} 28. Rad1 {[%clk 0:01:00.4]}
28... Ne7 {[%clk 0:00:13.7]} 29. Rd6 {[%clk 0:01:00.8]} 29... Rf8 {[%clk
0:00:13]} 30. Rhd1 {[%clk 0:01:00.3]} 30... Rf4 {[%clk 0:00:13.7]} 31. Re6
{[%clk 0:00:58.2]} 31... Kf7 {[%clk 0:00:09.4]} 32. Rxe5 {[%clk 0:00:58.1]}
32... Ng6 {[%clk 0:00:08.9]} 33. Rf5+ {[%clk 0:00:54.4]} 33... Rxf5 {[%clk
0:00:07.9]} 34. exf5 {[%clk 0:00:54.9]} 34... Nxh4 {[%clk 0:00:08.3]} 35. Rd7+
{[%clk 0:00:54.2]} 35... Kf8 {[%clk 0:00:07.5]} 36. Rxa7 {[%clk 0:00:54.1]}
36... Nxf5 {[%clk 0:00:08.4]} 37. Rc7 {[%clk 0:00:52.3]} 37... h4 {[%clk
0:00:09.3]} 38. Rxc6 {[%clk 0:00:50]} 38... h3 {[%clk 0:00:10.2]} 39. Rc8+
{[%clk 0:00:49.6]} 39... Kf7 {[%clk 0:00:07.6]} 40. Rh8 {[%clk 0:00:50.1]} 1-0

[Event "*** Titled Tuesday Blitz"]
[Site "Chess.com"]
[Date "2021.04.27"]
[Round "9"]
[White "AEMEffi"]
[Black "jraosam"]
[Result "1-0"]
[WhiteElo "2316"]
[BlackElo "1886"]
[TimeControl "180+1"]
[EndTime "11:43:09 PDT"]
[Termination "AEMEffi won by checkmate"]

1. d4 {[%clk 0:02:57.4]} 1... d5 {[%clk 0:02:16.3]} 2. c4 {[%clk 0:02:58.3]}
2... e6 {[%clk 0:02:16.2]} 3. cxd5 {[%clk 0:02:57]} 3... exd5 {[%clk 0:02:15.9]}
4. Nc3 {[%clk 0:02:57.9]} 4... c6 {[%clk 0:02:16]} 5. Bf4 {[%clk 0:02:57.5]}
5... Nd7 {[%clk 0:02:15.4]} 6. e3 {[%clk 0:02:58]} 6... Ngf6 {[%clk 0:02:15.3]}
7. Bd3 {[%clk 0:02:58.6]} 7... Be7 {[%clk 0:02:14.8]} 8. Nge2 {[%clk 0:02:58.9]}
8... Nh5 {[%clk 0:02:14.7]} 9. Qc2 {[%clk 0:02:57.6]} 9... Nxf4 {[%clk
0:02:14.8]} 10. Nxf4 {[%clk 0:02:57.9]} 10... Nf6 {[%clk 0:02:15.4]} 11. h3
{[%clk 0:02:55.4]} 11... Bd6 {[%clk 0:02:15.6]} 12. Nfe2 {[%clk 0:02:53.6]}
12... Qe7 {[%clk 0:02:14.9]} 13. O-O-O {[%clk 0:02:46.3]} 13... b6 {[%clk
0:02:13.4]} 14. Kb1 {[%clk 0:02:45.2]} 14... Bb7 {[%clk 0:02:11.4]} 15. e4
{[%clk 0:02:42.9]} 15... dxe4 {[%clk 0:02:11.3]} 16. Nxe4 {[%clk 0:02:43.8]}
16... Nxe4 {[%clk 0:02:11.6]} 17. Bxe4 {[%clk 0:02:44.7]} 17... Qc7 {[%clk
0:01:53.4]} 18. Bxh7 {[%clk 0:02:35.5]} 18... g6 {[%clk 0:01:51]} 19. Bxg6
{[%clk 0:02:35.4]} 19... fxg6 {[%clk 0:01:51.9]} 20. Qxg6+ {[%clk 0:02:35.3]}
20... Kd7 {[%clk 0:01:25.4]} 21. d5 {[%clk 0:02:19.1]} 21... Rag8 {[%clk
0:01:16.4]} 22. Qf5+ {[%clk 0:02:12.6]} 22... Ke7 {[%clk 0:01:10.6]} 23. Nd4
{[%clk 0:02:04.7]} 23... Qd7 {[%clk 0:00:19.8]} 24. Rhe1+ {[%clk 0:01:52]} 24...
Kd8 {[%clk 0:00:19.1]} 25. dxc6 {[%clk 0:00:49.9]} 25... Bxc6 {[%clk 0:00:20]}
26. Nxc6+ {[%clk 0:00:38.6]} 26... Qxc6 {[%clk 0:00:18.1]} 27. Qf6+ {[%clk
0:00:37]} 27... Kc7 {[%clk 0:00:12.5]} 28. Rxd6 {[%clk 0:00:33.7]} 28... Qxd6
{[%clk 0:00:10.1]} 29. Rc1+ {[%clk 0:00:30.1]} 29... Kd7 {[%clk 0:00:08.8]} 30.
Qf7+ {[%clk 0:00:29.5]} 30... Kd8 {[%clk 0:00:03.6]} 31. Qb7 {[%clk 0:00:28.8]}
31... Qg6+ {[%clk 0:00:02.2]} 32. Ka1 {[%clk 0:00:28.3]} 32... Qd6 {[%clk
0:00:01.7]} 33. Rc8# {[%clk 0:00:26.6]} 1-0

[Event "*** Titled Tuesday Blitz"]
[Site "Chess.com"]
[Date "2021.04.27"]
[Round "9"]
[White "Msb2"]
[Black "starworld123"]
[Result "1-0"]
[WhiteElo "2891"]
[BlackElo "2761"]
[TimeControl "180+1"]
[EndTime "11:43:10 PDT"]
[Termination "Msb2 won by resignation"]

1. d4 {[%clk 0:03:00.9]} 1... Nf6 {[%clk 0:02:56.8]} 2. c4 {[%clk 0:03:01.5]}
2... e6 {[%clk 0:02:56]} 3. Nc3 {[%clk 0:03:01.6]} 3... Bb4 {[%clk 0:02:56.5]}
4. e3 {[%clk 0:03:02]} 4... O-O {[%clk 0:02:55.9]} 5. Bd2 {[%clk 0:03:02.7]}
5... d5 {[%clk 0:02:53.1]} 6. Nf3 {[%clk 0:03:03.2]} 6... c5 {[%clk 0:02:53.2]}
7. a3 {[%clk 0:03:02.5]} 7... Bxc3 {[%clk 0:02:50.8]} 8. Bxc3 {[%clk 0:03:03.4]}
8... Ne4 {[%clk 0:02:48.1]} 9. Rc1 {[%clk 0:03:03.2]} 9... cxd4 {[%clk
0:02:25.3]} 10. Nxd4 {[%clk 0:03:03]} 10... e5 {[%clk 0:02:23.2]} 11. Nf3 {[%clk
0:03:02.8]} 11... Nxc3 {[%clk 0:02:17.1]} 12. Rxc3 {[%clk 0:03:03.7]} 12... d4
{[%clk 0:02:17.7]} 13. exd4 {[%clk 0:03:04.2]} 13... e4 {[%clk 0:02:18.2]} 14.
Ng1 {[%clk 0:03:04.9]} 14... Nc6 {[%clk 0:02:05.8]} 15. Ne2 {[%clk 0:03:04.5]}
15... Bg4 {[%clk 0:02:01.7]} 16. d5 {[%clk 0:03:03.7]} 16... Ne5 {[%clk
0:02:00.8]} 17. Qd4 {[%clk 0:02:59.2]} 17... Re8 {[%clk 0:01:37]} 18. h3 {[%clk
0:02:47.2]} 18... Bh5 {[%clk 0:01:05.8]} 19. Ng3 {[%clk 0:02:41.7]} 19... Nd3+
{[%clk 0:00:54.6]} 20. Kd2 {[%clk 0:02:42]} 20... Bg6 {[%clk 0:00:49.7]} 21. Be2
{[%clk 0:02:21.2]} 21... Qg5+ {[%clk 0:00:43.8]} 22. Qe3 {[%clk 0:02:21.1]}
22... Qf6 {[%clk 0:00:44.4]} 23. Kc2 {[%clk 0:01:55.1]} 23... Qxf2 {[%clk
0:00:40.4]} 24. Qxf2 {[%clk 0:01:55]} 24... Nxf2 {[%clk 0:00:41.3]} 25. Rf1
{[%clk 0:01:51.2]} 25... e3+ {[%clk 0:00:39.8]} 26. Kb3 {[%clk 0:01:47.7]} 26...
f5 {[%clk 0:00:39.4]} 27. Bf3 {[%clk 0:01:47.4]} 27... f4 {[%clk 0:00:36.2]} 28.
Ne2 {[%clk 0:01:48]} 28... Bd3 {[%clk 0:00:36.8]} 29. c5 {[%clk 0:01:38.7]}
29... g5 {[%clk 0:00:31]} 30. d6 {[%clk 0:01:38.5]} 30... Bxe2 {[%clk
0:00:30.6]} 31. Bxe2 {[%clk 0:01:39.1]} 31... Ne4 {[%clk 0:00:31.2]} 32. Rd1
{[%clk 0:01:24.1]} 32... Nxc3 {[%clk 0:00:27.7]} 33. Kxc3 {[%clk 0:01:25]} 33...
Kf7 {[%clk 0:00:24.7]} 34. b4 {[%clk 0:01:13]} 34... a6 {[%clk 0:00:19.4]} 35.
Kd4 {[%clk 0:01:05.8]} 35... Kf6 {[%clk 0:00:16.7]} 36. Bf3 {[%clk 0:01:02.4]}
36... Rab8 {[%clk 0:00:16]} 37. Kc4 {[%clk 0:01:00.6]} 37... Re5 {[%clk
0:00:14.2]} 38. a4 {[%clk 0:00:59.3]} 38... h5 {[%clk 0:00:14]} 39. b5 {[%clk
0:00:50.8]} 39... axb5+ {[%clk 0:00:13.7]} 40. axb5 {[%clk 0:00:51.7]} 40... g4
{[%clk 0:00:09.6]} 41. hxg4 {[%clk 0:00:52.6]} 41... Rc8 {[%clk 0:00:08.1]} 42.
c6 {[%clk 0:00:51.9]} 42... bxc6 {[%clk 0:00:09]} 43. bxc6 {[%clk 0:00:52.6]}
43... hxg4 {[%clk 0:00:09.5]} 44. d7 {[%clk 0:00:53.2]} 44... Rd8 {[%clk
0:00:06.7]} 45. c7 {[%clk 0:00:53.7]} 45... e2 {[%clk 0:00:04.8]} 46. cxd8=Q+
{[%clk 0:00:53.5]} 1-0

[Event "*** Titled Tuesday Blitz"]
[Site "Chess.com"]
[Date "2021.04.27"]
[Round "9"]
[White "platy3"]
[Black "IMRosen"]
[Result "1-0"]
[WhiteElo "2845"]
[BlackElo "2670"]
[TimeControl "180+1"]
[EndTime "11:43:14 PDT"]
[Termination "platy3 won by resignation"]

1. e4 {[%clk 0:03:00.9]} 1... e5 {[%clk 0:02:49.7]} 2. Nf3 {[%clk 0:03:00.7]}
2... Nf6 {[%clk 0:02:49.6]} 3. Nxe5 {[%clk 0:03:00.4]} 3... Nc6 {[%clk 0:02:50]}
4. Nxc6 {[%clk 0:02:48]} 4... dxc6 {[%clk 0:02:50.9]} 5. e5 {[%clk 0:02:35.7]}
5... Ne4 {[%clk 0:02:49.7]} 6. Nc3 {[%clk 0:02:21.3]} 6... Qd4 {[%clk
0:02:25.6]} 7. Nxe4 {[%clk 0:02:13.7]} 7... Qxe4+ {[%clk 0:02:24.8]} 8. Qe2
{[%clk 0:02:13.4]} 8... Qxc2 {[%clk 0:02:22.6]} 9. Qc4 {[%clk 0:02:03.1]} 9...
Qg6 {[%clk 0:02:13.3]} 10. d4 {[%clk 0:01:48.7]} 10... Be6 {[%clk 0:02:01]} 11.
Qc3 {[%clk 0:01:45.7]} 11... O-O-O {[%clk 0:01:45.2]} 12. Be3 {[%clk 0:01:41.6]}
12... Bd5 {[%clk 0:01:05.2]} 13. h4 {[%clk 0:01:38.8]} 13... f6 {[%clk
0:01:03.9]} 14. h5 {[%clk 0:01:37.8]} 14... Qf7 {[%clk 0:00:59.8]} 15. Rg1
{[%clk 0:01:26.7]} 15... Qxh5 {[%clk 0:00:50.6]} 16. Be2 {[%clk 0:01:23.7]}
16... Qg6 {[%clk 0:00:40.6]} 17. a3 {[%clk 0:01:23.4]} 17... Kb8 {[%clk
0:00:34.2]} 18. O-O-O {[%clk 0:01:23.1]} 18... Be7 {[%clk 0:00:28.6]} 19. f4
{[%clk 0:01:21.5]} 19... Rhf8 {[%clk 0:00:27.8]} 20. g4 {[%clk 0:01:20.9]} 20...
fxe5 {[%clk 0:00:28]} 21. dxe5 {[%clk 0:01:18.7]} 21... Qe6 {[%clk 0:00:07.6]}
22. f5 {[%clk 0:01:17.3]} 22... Qc8 {[%clk 0:00:07.9]} 23. e6 {[%clk 0:01:12.8]}
23... Bf6 {[%clk 0:00:07.8]} 24. Bd4 {[%clk 0:01:13.4]} 24... Rde8 {[%clk
0:00:06.7]} 25. Bxf6 {[%clk 0:01:07.4]} 25... Rxf6 {[%clk 0:00:07.6]} 26. Bd3
{[%clk 0:01:03.8]} 26... h6 {[%clk 0:00:08]} 27. Bc2 {[%clk 0:01:03.6]} 27... b6
{[%clk 0:00:07.4]} 28. g5 {[%clk 0:01:01.2]} 28... hxg5 {[%clk 0:00:07.4]} 29.
Rxg5 {[%clk 0:01:02.1]} 29... Re7 {[%clk 0:00:08.1]} 30. Rdg1 {[%clk 0:01:02.1]}
30... Qf8 {[%clk 0:00:08]} 31. Qg3 {[%clk 0:01:01.2]} 31... Be4 {[%clk
0:00:07.2]} 32. Bxe4 {[%clk 0:01:00.6]} 32... Re8 {[%clk 0:00:04.2]} 33. Rxg7
{[%clk 0:00:58]} 33... Qc5+ {[%clk 0:00:04.6]} 34. Kb1 {[%clk 0:00:58.6]} 34...
Rc8 {[%clk 0:00:03.7]} 35. Rc1 {[%clk 0:00:58.3]} 35... Qd4 {[%clk 0:00:01.9]}
36. Bxc6 {[%clk 0:00:58.4]} 36... Rxf5 {[%clk 0:00:01.8]} 37. Bd7 {[%clk
0:00:48.7]} 37... Qe4+ {[%clk 0:00:01.9]} 38. Ka1 {[%clk 0:00:48.4]} 38... Rc5
{[%clk 0:00:01.5]} 39. Rxc5 {[%clk 0:00:44.1]} 39... bxc5 {[%clk 0:00:01.9]} 40.
Qb3+ {[%clk 0:00:40.4]} 40... Ka8 {[%clk 0:00:01.4]} 41. Bxc8 {[%clk 0:00:40.5]}
41... Qh1+ {[%clk 0:00:01.3]} 42. Ka2 {[%clk 0:00:40.5]} 42... c4 {[%clk
0:00:02.2]} 43. Qb7+ {[%clk 0:00:39.4]} 43... Qxb7 {[%clk 0:00:01.2]} 44. Bxb7+
{[%clk 0:00:40.3]} 44... Kxb7 {[%clk 0:00:02.1]} 1-0

[Event "*** Titled Tuesday Blitz"]
[Site "Chess.com"]
[Date "2021.04.27"]
[Round "9"]
[White "annacramling"]
[Black "Roedor"]
[Result "0-1"]
[WhiteElo "2070"]
[BlackElo "2287"]
[TimeControl "180+1"]
[EndTime "11:43:15 PDT"]
[Termination "Roedor won on time"]

1. d4 {[%clk 0:03:00.9]} 1... Nf6 {[%clk 0:02:56.6]} 2. c4 {[%clk 0:03:00.3]}
2... g6 {[%clk 0:02:56.5]} 3. Nc3 {[%clk 0:02:59.6]} 3... Bg7 {[%clk 0:02:56.9]}
4. e4 {[%clk 0:02:58.2]} 4... d6 {[%clk 0:02:56.6]} 5. h3 {[%clk 0:02:57.6]}
5... O-O {[%clk 0:02:55.6]} 6. Bg5 {[%clk 0:02:53.1]} 6... c5 {[%clk 0:02:55.2]}
7. d5 {[%clk 0:02:53.3]} 7... a6 {[%clk 0:02:52]} 8. a4 {[%clk 0:02:52.8]} 8...
h6 {[%clk 0:02:40.2]} 9. Be3 {[%clk 0:02:50.9]} 9... Nbd7 {[%clk 0:02:39.2]} 10.
Nf3 {[%clk 0:02:39.1]} 10... Rb8 {[%clk 0:02:33.9]} 11. Qd2 {[%clk 0:02:33.1]}
11... Kh7 {[%clk 0:02:32.4]} 12. g4 {[%clk 0:02:32.8]} 12... b5 {[%clk
0:02:17.4]} 13. axb5 {[%clk 0:02:30.5]} 13... axb5 {[%clk 0:02:18.3]} 14. cxb5
{[%clk 0:02:26.4]} 14... Ne8 {[%clk 0:02:10.6]} 15. Bd3 {[%clk 0:02:19.3]} 15...
e5 {[%clk 0:01:42.9]} 16. dxe6 {[%clk 0:02:16.5]} 16... fxe6 {[%clk 0:01:42.4]}
17. g5 {[%clk 0:01:18.8]} 17... Rxf3 {[%clk 0:01:36.8]} 18. gxh6 {[%clk
0:01:06.3]} 18... Bd4 {[%clk 0:01:30.3]} 19. Qe2 {[%clk 0:00:57.4]} 19... Ne5
{[%clk 0:01:26.1]} 20. Bc2 {[%clk 0:00:37.1]} 20... Bxe3 {[%clk 0:01:17.4]} 21.
fxe3 {[%clk 0:00:36.6]} 21... Qg5 {[%clk 0:01:12.9]} 22. Nd1 {[%clk 0:00:15.8]}
22... Nf6 {[%clk 0:00:51.7]} 23. Kd2 {[%clk 0:00:12.3]} 23... Rg3 {[%clk
0:00:48.6]} 24. Rf1 {[%clk 0:00:06.8]} 24... Bb7 {[%clk 0:00:42.3]} 25. Ra7
{[%clk 0:00:06.1]} 25... Kxh6 {[%clk 0:00:42.2]} 26. b6 {[%clk 0:00:03.4]} 26...
Rg2 {[%clk 0:00:33.5]} 27. Rf2 {[%clk 0:00:02.7]} 27... Rxf2 {[%clk 0:00:32.8]}
28. Nxf2 {[%clk 0:00:03.6]} 28... Qg2 {[%clk 0:00:20.1]} 29. Ra1 {[%clk
0:00:02.9]} 29... Bc6 {[%clk 0:00:17.3]} 30. Rf1 {[%clk 0:00:02.5]} 30... Rxb6
{[%clk 0:00:17.1]} 31. Kc1 {[%clk 0:00:02.2]} 31... Bb5 {[%clk 0:00:15.6]} 32.
Ng4+ {[%clk 0:00:02.5]} 32... Nfxg4 {[%clk 0:00:14.9]} 0-1

[Event "*** Titled Tuesday Blitz"]
[Site "Chess.com"]
[Date "2021.04.27"]
[Round "9"]
[White "OK97"]
[Black "MITerryble"]
[Result "1/2-1/2"]
[WhiteElo "2759"]
[BlackElo "2894"]
[TimeControl "180+1"]
[EndTime "11:43:16 PDT"]
[Termination "Game drawn by repetition"]

1. c4 {[%clk 0:03:00.9]} 1... e5 {[%clk 0:02:59.8]} 2. Nc3 {[%clk 0:03:00.9]}
2... Nc6 {[%clk 0:03:00.1]} 3. Nf3 {[%clk 0:02:59.4]} 3... f5 {[%clk 0:02:59.8]}
4. e3 {[%clk 0:02:53.4]} 4... e4 {[%clk 0:02:55.9]} 5. Nd4 {[%clk 0:02:46.1]}
5... Nxd4 {[%clk 0:02:56]} 6. exd4 {[%clk 0:02:47]} 6... Nf6 {[%clk 0:02:53.6]}
7. d3 {[%clk 0:02:43.3]} 7... Bb4 {[%clk 0:02:50.4]} 8. Qb3 {[%clk 0:02:33.2]}
8... Qe7 {[%clk 0:02:47.8]} 9. Bg5 {[%clk 0:02:13.1]} 9... exd3+ {[%clk
0:02:41]} 10. Kd1 {[%clk 0:02:13.6]} 10... Bxc3 {[%clk 0:02:22.6]} 11. Qxc3
{[%clk 0:02:00.9]} 11... Ne4 {[%clk 0:02:21.9]} 12. Bxe7 {[%clk 0:01:59.7]}
12... Nxc3+ {[%clk 0:02:22.2]} 13. bxc3 {[%clk 0:02:00.6]} 13... Kxe7 {[%clk
0:02:22.7]} 14. Bxd3 {[%clk 0:02:01.3]} 14... d6 {[%clk 0:02:20.3]} 15. Re1+
{[%clk 0:01:55.1]} 15... Kf6 {[%clk 0:02:19.6]} 16. Rb1 {[%clk 0:01:55.6]} 16...
b6 {[%clk 0:02:18.2]} 17. c5 {[%clk 0:01:53.1]} 17... dxc5 {[%clk 0:02:17.1]}
18. dxc5 {[%clk 0:01:51.5]} 18... Be6 {[%clk 0:02:16.1]} 19. a4 {[%clk
0:01:36.3]} 19... Rab8 {[%clk 0:01:49.5]} 20. cxb6 {[%clk 0:01:26]} 20... axb6
{[%clk 0:01:50.4]} 21. Kc2 {[%clk 0:01:25.8]} 21... Ra8 {[%clk 0:01:50.5]} 22.
Bb5 {[%clk 0:01:26.1]} 22... Rhd8 {[%clk 0:01:50.1]} 23. Rbd1 {[%clk 0:01:19.9]}
23... f4 {[%clk 0:01:40.6]} 24. Rd4 {[%clk 0:01:13.3]} 24... g5 {[%clk
0:01:35.5]} 25. Bc6 {[%clk 0:01:05.8]} 25... Rxd4 {[%clk 0:01:28.3]} 26. cxd4
{[%clk 0:01:05.2]} 26... Rd8 {[%clk 0:01:28.8]} 27. Kc3 {[%clk 0:01:03.4]} 27...
Rd6 {[%clk 0:01:27.7]} 28. Be4 {[%clk 0:01:02.7]} 28... h5 {[%clk 0:01:21.9]}
29. Ra1 {[%clk 0:00:57.5]} 29... Bd5 {[%clk 0:01:12.1]} 30. f3 {[%clk
0:00:49.3]} 30... Rc6+ {[%clk 0:01:09.9]} 31. Kd3 {[%clk 0:00:39.9]} 31... Bc4+
{[%clk 0:00:59.8]} 32. Kc3 {[%clk 0:00:37.3]} 32... Bd5+ {[%clk 0:00:59.6]} 33.
Kd3 {[%clk 0:00:37.8]} 33... Bxe4+ {[%clk 0:00:31.6]} 34. fxe4 {[%clk
0:00:38.7]} 34... Kg6 {[%clk 0:00:31.8]} 35. a5 {[%clk 0:00:27.9]} 35... bxa5
{[%clk 0:00:32.7]} 36. Rxa5 {[%clk 0:00:28.5]} 36... Rc1 {[%clk 0:00:28.9]} 37.
Ra6+ {[%clk 0:00:27.2]} 37... Kf7 {[%clk 0:00:26.6]} 38. Ra5 {[%clk 0:00:23.7]}
38... Kg6 {[%clk 0:00:24.1]} 39. Ra6+ {[%clk 0:00:23.8]} 39... Kf7 {[%clk
0:00:18.4]} 40. Ra5 {[%clk 0:00:20.9]} 40... Kg6 {[%clk 0:00:14.3]} 1/2-1/2